bitfinex/quotes_ETHUSD_20251127
["timestamp","ask_amount","ask_price","bid_price","bid_amount"]
[1764236028684,0.0181,3043.2,3042.9,0.405504]
[1764236028979,0.0181,3043.2,3043.0,0.208]
[1764236029361,0.0181,3043.2,3043.1,0.208]
[1764236030376,0.4808,3043.6,3043.1,0.7034]
[1764236030582,3.28536697,3043.8,3043.3,0.4954]
[1764236030760,3.76616697,3043.8,3043.3,0.4954]
[1764236031351,0.4808,3043.8,3043.3,0.4954]
[1764236031551,3.47036411,3043.9,3043.3,0.9628]
[1764236031790,3.47036411,3043.9,3043.4,0.405504]
[1764236031791,0.1851,3043.9,3043.4,0.405504]
[1764236031987,0.1851,3043.9,3043.5,0.208]
[1764236032884,0.1851,3043.9,3043.4,0.208]
[1764236032885,0.4916,3043.6,3043.4,0.208]
[1764236033250,0.1851,3043.9,3043.4,0.208]
[1764236033578,0.4808,3044.3,3043.5,0.613504]
[1764236033780,0.4808,3044.3,3043.8,0.4954]
[1764236034076,0.4808,3044.3,3043.9,0.208]
[1764236034279,6.56987056,3044.2,3043.9,0.208]
[1764236034452,0.4916,3044.0,3043.9,0.208]
[1764236034852,0.9724,3044.0,3043.9,0.208]
[1764236035301,3.2866563,3044.5,3044.0,0.405504]
[1764236035501,7.0521126,3044.5,3044.0,0.405504]
[1764236035706,0.4916,3044.1,3044.0,0.405504]
[1764236036008,0.4916,3044.1,3043.9,0.208]
[1764236036311,0.0181,3044.0,3043.9,0.208]
[1764236036673,0.0181,3044.0,3043.9,0.613504]
[1764236036916,3.76558776,3044.4,3043.9,0.208]
[1764236037204,0.4808,3044.3,3043.9,0.208]
[1764236037708,0.4916,3044.0,3043.9,0.208]
[1764236040308,0.4916,3044.0,3043.6,0.405504]
[1764236040309,0.4916,3044.0,3043.3,4.47890085]
[1764236040492,3.28493528,3044.2,3043.5,0.405504]
[1764236040696,3.76573528,3044.2,3043.5,0.405504]
[1764236040894,7.05067056,3044.2,3043.5,0.405504]
[1764236041095,3.76573528,3044.2,3043.5,0.405504]
[1764236041785,0.002,3044.5,3044.2,0.405504]
[1764236041990,0.002,3044.5,3044.4,0.900904]
[1764236042317,0.002,3044.5,3044.4,0.7034]
[1764236042629,0.002,3044.5,3044.4,0.613504]
[1764236042776,0.002,3044.5,3044.4,1.108904]
[1764236043871,0.4936,3044.5,3044.4,0.208]
[1764236044207,0.9744,3044.5,3044.4,0.208]
[1764236044394,0.9744,3044.5,3043.9,0.405504]
[1764236044596,7.54362318,3044.5,3043.9,0.405504]
[1764236044803,0.4808,3044.4,3043.9,0.405504]
[1764236045105,0.4808,3044.4,3044.0,0.208]
[1764236045805,0.4916,3044.1,3043.6,0.72559411]
[1764236046004,0.4808,3044.4,3043.7,0.208]
[1764236046399,3.28402738,3044.3,3043.7,0.208]
[1764236046577,3.28402738,3044.3,3043.3,1.19299411]
[1764236046578,7.04965476,3044.3,3043.3,1.19299411]
[1764236046779,0.002,3044.5,3043.6,0.405504]
[1764236046978,3.76741793,3044.5,3043.7,0.208]
[1764236047289,3.76742251,3044.5,3043.9,0.405504]
[1764236047812,0.4808,3044.4,3043.9,0.405504]
[1764236048106,0.4916,3044.0,3043.9,0.208]
[1764236048474,3.28503101,3044.2,3043.9,0.208]
[1764236048917,3.28663702,3044.5,3043.9,0.208]
[1764236049074,7.05207404,3044.5,3043.9,0.208]
[1764236049277,7.05207404,3044.5,3044.0,0.405504]
[1764236049786,0.4736,3044.4,3044.0,0.405504]
[1764236050596,3.75836416,3044.4,3044.0,0.405504]
[1764236051323,0.002,3044.5,3044.4,0.405504]
[1764236051526,0.002,3044.5,3044.4,1.572704]
[1764236052107,0.002,3044.5,3044.4,1.094504]
[1764236052308,0.4897,3044.5,3044.4,0.208]
[1764236052826,0.4897,3044.5,3044.2,0.405504]
[1764236053129,0.4897,3044.5,3044.0,0.405504]
[1764236053130,0.0376,3044.3,3044.0,0.405504]
[1764236053294,0.0376,3044.3,3044.1,0.208]
[1764236053623,0.4541,3044.2,3043.5,0.405504]
[1764236053825,0.4541,3044.2,3043.6,0.72559411]
[1764236054028,3.28663446,3044.5,3043.6,0.93359411]
[1764236054232,6.57126892,3044.5,3043.6,1.41179411]
[1764236054408,0.4541,3044.4,3043.6,1.41179411]
[1764236054735,0.4541,3044.4,3043.7,0.405504]
[1764236054929,0.4541,3044.4,3043.8,0.208]
[1764236054930,6.56965476,3044.3,3043.8,0.208]
[1764236055227,3.28482738,3044.3,3043.8,0.208]
[1764236055426,6.56965476,3044.3,3043.8,0.208]
[1764236055893,0.4877,3043.9,3043.8,0.208]
[1764236056094,0.6876,3043.9,3043.0,0.4782]
[1764236056294,1.1417,3043.9,3043.2,0.208]
[1764236056527,0.4541,3043.8,3043.2,0.208]
[1764236056717,0.4541,3043.8,3043.3,0.405504]
[1764236056916,6.57094982,3043.7,3043.3,0.405504]
[1764236057118,6.57094982,3043.7,3043.0,0.4782]
[1764236057442,0.483,3043.2,3042.5,0.001]
[1764236057661,0.4541,3043.6,3042.5,0.001]
[1764236057861,0.30714222,3043.5,3042.6,0.208]
[1764236058036,0.4541,3043.6,3042.6,0.208]
[1764236058237,0.76119345,3043.5,3042.7,0.405504]
[1764236058562,0.4541,3043.5,3042.7,0.405504]
[1764236058759,0.4541,3043.4,3042.7,0.405504]
[1764236058936,6.57181348,3043.3,3042.7,0.405504]
[1764236059349,6.57181348,3043.3,3042.5,0.001]
[1764236059350,0.4877,3042.8,3042.5,0.001]
[1764236059667,0.483,3042.6,3042.5,0.001]
[1764236059967,0.6829,3042.6,3042.5,0.001]
[1764236060149,0.6829,3042.6,3042.5,0.209]
[1764236060150,1.137,3042.6,3042.5,0.209]
[1764236060940,4.42366272,3042.6,3042.5,0.001]
[1764236061160,4.42366272,3042.6,3042.5,0.209]
[1764236062237,3.2864804,3042.8,3042.5,0.69]
[1764236063342,0.1999,3043.2,3042.7,0.481]
[1764236063543,3.73983249,3043.5,3042.8,0.886504]
[1764236063850,6.5707727,3043.8,3043.2,0.405504]
[1764236064060,0.4541,3043.5,3043.3,0.208]
[1764236064436,0.4877,3043.4,3042.5,0.72659411]
[1764236064642,0.0083,3043.3,3042.5,0.001]
[1764236064860,0.0083,3043.3,3042.7,0.405504]
[1764236065077,6.57202944,3043.2,3042.7,0.405504]
[1764236065589,3.74011472,3043.2,3042.7,0.405504]
[1764236065787,3.28601472,3043.2,3042.6,0.405504]
[1764236065993,3.74011472,3043.2,3042.8,0.208]
[1764236066355,7.02612944,3043.2,3042.8,0.208]
[1764236066699,0.6876,3042.9,3042.5,0.001]
[1764236066998,0.0083,3042.7,3042.6,0.405504]
[1764236067199,0.0083,3042.7,3042.5,0.001]
[1764236067697,3.28646576,3042.8,3042.5,0.001]
[1764236067698,3.28648472,3042.8,3042.5,0.001]
[1764236067988,0.4877,3042.6,3042.5,0.001]
[1764236068285,0.4877,3042.6,3042.5,0.21]
[1764236068886,3.48625711,3042.9,3042.5,0.691]
[1764236069080,6.77261422,3042.9,3042.5,0.691]
[1764236069281,7.22671422,3042.9,3042.5,0.691]
[1764236069877,3.94035711,3042.9,3042.5,0.691]
[1764236070085,3.48625711,3042.9,3042.5,0.691]
[1764236070294,3.48524572,3043.1,3042.6,0.405504]
[1764236070468,3.28614572,3043.1,3042.6,0.405504]
[1764236070796,0.4877,3042.7,3042.5,0.001]
[1764236070982,4.09635602,3043.0,3042.6,0.209]
[1764236071185,0.4877,3042.7,3042.6,0.209]
[1764236071957,0.9418,3042.7,3042.5,0.001]
[1764236072189,6.92852519,3043.0,3042.5,0.001]
[1764236072190,3.64225602,3043.0,3042.5,0.001]
[1764236072380,3.64225602,3043.0,3042.6,0.209]
[1764236072788,0.4877,3042.7,3042.6,0.209]
[1764236073182,3.7742547,3042.7,3042.6,0.209]
[1764236079615,6.57275979,3042.9,3042.6,0.69]
[1764236079913,3.28636801,3042.9,3042.6,0.69]
[1764236080623,3.28636801,3042.9,3042.6,0.209]
[1764236080828,6.57275979,3042.9,3042.6,0.209]
[1764236081111,0.4591,3042.7,3042.6,0.209]
[1764236081795,3.7456547,3042.7,3042.6,0.209]
[1764236082111,0.4591,3042.7,3042.6,0.209]
[1764236082280,3.7456547,3042.7,3042.6,0.209]
[1764236083980,0.4591,3042.7,3042.6,0.209]
[1764236085101,0.4591,3042.7,3042.5,0.001]
[1764236085306,6.57267738,3042.9,3042.6,0.208]
[1764236085709,0.4591,3042.7,3042.6,0.208]
[1764236085909,3.7456547,3042.7,3042.6,0.208]
[1764236086493,3.7456547,3042.7,3042.5,0.001]
[1764236086695,3.2865547,3042.7,3042.6,0.208]
[1764236086885,3.2865547,3042.7,3042.5,0.001]
[1764236087087,6.57278303,3042.9,3042.6,0.486]
[1764236087305,0.30774648,3042.8,3042.6,0.208]
[1764236087653,6.57278303,3042.9,3042.7,0.208]
[1764236087859,0.30775043,3042.8,3042.7,0.208]
[1764236088016,4.05329712,3042.8,3042.7,0.208]
[1764236088419,4.05329712,3042.8,3042.5,0.001]
[1764236088721,0.30775043,3042.7,3042.6,0.208]
[1764236089053,0.76685043,3042.7,3042.6,0.208]
[1764236089356,0.76685043,3042.7,3042.5,0.001]
[1764236089553,3.7456547,3042.7,3042.6,0.208]
[1764236089755,3.59440736,3042.7,3042.6,0.208]
[1764236089929,4.05350736,3042.7,3042.6,0.208]
[1764236090528,4.04637624,3042.7,3042.6,0.208]
[1764236092542,0.30785266,3042.7,3042.6,0.694]
[1764236092747,3.59440736,3042.7,3042.6,0.694]
[1764236094049,3.59440736,3042.7,3042.5,0.001]
[1764236094050,3.59360736,3042.7,3042.5,0.001]
[1764236094251,6.5731094,3042.7,3042.5,0.001]
[1764236094840,3.2865547,3042.7,3042.5,0.001]
[1764236095041,0.4591,3042.6,3042.5,0.001]
[1764236096049,3.74576272,3042.6,3042.5,0.001]
[1764236097153,4.47135683,3042.6,3042.5,0.001]
[1764236097869,5.3871411,3042.6,3042.5,0.001]
[1764236098371,0.72559411,3042.5,3042.2,0.001]
[1764236098572,4.10135602,3042.3,3042.2,0.001]
[1764236099052,1.37420965,3042.3,3042.2,0.001]
[1764236099789,0.4874,3042.3,3042.2,0.001]
[1764236100164,3.77438681,3042.3,3042.2,0.001]
[1764236102563,4.49998092,3042.3,3042.2,0.001]
[1764236103187,4.70898092,3042.3,3042.2,0.001]
[1764236103389,4.49998092,3042.3,3042.2,0.001]
[1764236104204,5.38444715,3042.3,3042.2,0.001]
[1764236104377,5.38444715,3042.3,3041.8,0.001]
[1764236104378,0.4591,3042.0,3041.8,0.001]
[1764236104578,4.23895602,3041.9,3041.8,0.001]
[1764236104783,4.32895602,3041.9,3041.8,0.001]
[1764236105188,5.05455013,3041.9,3041.8,0.001]
[1764236105494,5.1538133,3041.9,3041.8,0.001]
[1764236105697,5.05455013,3041.9,3041.8,0.001]
[1764236105893,5.36142863,3041.9,3041.8,0.001]
[1764236106293,8.64884767,3041.9,3041.8,0.001]
[1764236108306,8.74811084,3041.9,3041.8,0.001]
[1764236108506,8.74811084,3041.9,3041.4,0.001]
[1764236108507,0.72559411,3041.8,3041.4,0.001]
[1764236108693,1.48617261,3041.8,3041.4,0.001]
[1764236109474,0.0837,3041.8,3041.4,0.001]
[1764236110372,3.28752712,3041.8,3041.7,0.5002]
[1764236110793,3.37122712,3041.8,3041.7,0.001]
[1764236110999,3.28752712,3041.8,3041.7,0.001]
[1764236111183,6.92978314,3041.8,3041.7,0.001]
[1764236111389,7.65537725,3041.8,3041.7,0.5002]
[1764236111810,3.28752712,3041.8,3041.7,0.9768]
[1764236112107,3.28752712,3041.8,3041.7,0.5002]
[1764236112108,6.92978314,3041.8,3041.7,0.5002]
[1764236112605,6.92978314,3041.8,3041.7,0.001]
[1764236112806,6.92978314,3041.8,3041.7,0.5002]
[1764236113173,3.28752712,3041.8,3041.7,0.9768]
[1764236113374,6.57375754,3042.4,3041.7,0.9768]
[1764236113595,6.57375754,3042.4,3041.8,0.9758]
[1764236113807,6.57375754,3042.4,3042.3,0.6964]
[1764236113808,4.01247288,3042.4,3042.3,0.6964]
[1764236114297,0.002,3042.7,3042.3,1.173]
[1764236114298,6.57332544,3042.6,3042.3,1.173]
[1764236114614,0.002,3042.7,3042.6,0.4992]
[1764236114980,0.002,3042.7,3042.3,0.1972]
[1764236114981,0.72559411,3042.6,3042.2,0.405504]
[1764236115183,0.72559411,3042.6,3042.1,0.8828]
[1764236115381,0.72559411,3042.6,3042.2,0.4766]
[1764236115882,0.72559411,3042.6,3042.3,0.4766]
[1764236116474,6.57354148,3042.5,3042.3,0.4766]
[1764236116679,6.57354148,3042.5,3042.1,0.4062]
[1764236116888,9.86031222,3042.5,3042.1,0.8828]
[1764236117613,9.86031222,3042.5,3042.1,0.1972]
[1764236117914,0.0837,3042.2,3041.7,0.001]
[1764236118085,3.64225602,3042.3,3041.7,0.001]
[1764236118700,9.86128458,3042.2,3041.7,0.001]
[1764236119599,9.86128458,3042.2,3041.7,0.4776]
[1764236120311,9.86128458,3042.2,3041.7,0.001]
[1764236120513,3.64225602,3041.9,3041.7,0.001]
[1764236120713,3.37122712,3041.8,3041.7,0.001]
[1764236121423,3.67800858,3041.8,3041.7,0.001]
[1764236122397,0.002,3042.3,3041.8,3.16482614]
[1764236122594,0.002,3042.7,3042.4,6.57375754]
[1764236122845,0.002,3042.7,3042.6,7.65898717]
[1764236123115,0.002,3042.7,3042.6,7.65698717]
[1764236123305,0.002,3042.7,3042.6,9.40030385]
[1764236123493,0.002,3042.7,3042.6,7.86798717]
[1764236123698,0.002,3042.7,3042.6,5.20297317]
[1764236123899,0.002,3042.7,3042.6,14.42707224]
[1764236124690,0.002,3042.7,3042.6,10.62550896]
[1764236125018,0.002,3042.7,3042.6,16.93268196]
[1764236125641,0.002,3042.7,3042.6,12.83836996]
[1764236125943,0.002,3042.7,3042.6,6.7646339]
[1764236126143,0.002,3042.7,3042.6,5.2536339]
[1764236126312,0.002,3042.7,3042.6,4.01225683]
[1764236126512,0.002,3042.7,3042.6,5.09246558]
[1764236126718,0.002,3042.7,3042.6,5.49796958]
[1764236127120,0.002,3042.7,3042.6,4.62876083]
[1764236129332,0.002,3042.7,3042.6,5.32295683]
[1764236130852,0.002,3042.7,3042.6,5.11195683]
[1764236131021,0.002,3042.7,3042.6,5.32195683]
[1764236131226,0.002,3042.7,3042.6,3.98085872]
[1764236131418,0.002,3042.7,3042.6,3.49666272]
[1764236131615,0.002,3042.7,3042.6,3.90216672]
[1764236131839,0.002,3042.7,3042.0,0.86920875]
[1764236132030,0.002,3042.7,3042.1,0.90415599]
[1764236132229,0.002,3042.7,3042.2,0.69415599]
[1764236132454,0.002,3042.7,3042.1,6.78440582]
[1764236132759,0.002,3042.7,3042.2,0.93559411]
[1764236133121,0.002,3042.7,3042.3,6.57397362]
[1764236133328,0.002,3042.7,3042.4,0.72559411]
[1764236133826,0.002,3042.7,3042.5,0.405504]
[1764236135254,0.002,3042.7,3042.6,3.69216672]
[1764236139059,0.4999,3042.7,3042.6,0.405504]
[1764236139243,0.002,3042.7,3042.6,0.615504]
[1764236140033,0.4999,3042.7,3042.6,0.615504]
[1764236141060,0.4999,3042.7,3042.6,0.405504]
[1764236141061,0.9996,3042.7,3042.6,0.405504]
[1764236141265,0.9996,3042.7,3041.8,3.28752712]
[1764236141461,0.4997,3042.6,3041.9,0.21]
[1764236141744,3.78567074,3042.5,3042.0,3.69281428]
[1764236142144,0.4997,3042.5,3042.0,3.69281428]
[1764236143773,3.78651187,3042.5,3042.0,3.69281428]
[1764236145356,0.4997,3042.5,3042.0,3.69281428]
[1764236145757,3.78650991,3042.5,3042.0,3.69281428]
[1764236145980,0.002,3042.7,3042.2,0.405504]
[1764236146172,0.002,3042.7,3042.4,0.405504]
[1764236148193,0.002,3042.7,3042.5,3.28677074]
[1764236148386,0.002,3042.7,3042.6,0.405504]
[1764236151169,0.002,3042.7,3042.6,1.10452402]
[1764236153770,0.002,3042.7,3042.6,4.39118674]
[1764236154414,0.002,3042.7,3042.6,1.10452402]
[1764236154415,0.4729,3042.7,3042.6,1.10452402]
[1764236154897,0.9726,3042.7,3042.6,1.10452402]
[1764236155823,4.2591547,3042.7,3042.6,1.10452402]
[1764236156012,4.2591547,3042.7,3042.6,0.90902002]
[1764236156394,4.2591547,3042.7,3042.6,0.69902002]
[1764236156625,4.2591547,3042.7,3042.6,0.21]
[1764236158586,4.2591547,3042.7,3042.5,0.21]
[1764236158587,7.5457094,3042.7,3042.5,0.21]
[1764236158793,0.4997,3042.6,3042.5,0.21]
[1764236159048,0.9706,3042.6,3042.5,0.21]
[1764236159320,4.25726272,3042.6,3042.5,0.21]
[1764236160210,0.9706,3042.6,3042.5,0.21]
[1764236160411,4.25726272,3042.6,3042.5,0.21]
[1764236160816,3.28666272,3042.6,3042.5,0.21]
[1764236161120,3.75756272,3042.6,3042.5,0.21]
[1764236161328,0.002,3042.7,3042.5,0.21]
[1764236162958,0.9706,3042.6,3042.5,0.21]
[1764236163163,1.27834648,3042.6,3042.3,0.001]
[1764236163367,0.4709,3042.4,3042.3,0.001]
[1764236163531,0.77862448,3042.4,3042.3,0.001]
[1764236163734,1.27832448,3042.4,3042.3,0.001]
[1764236164181,3.28668982,3042.6,3042.3,0.001]
[1764236164363,0.4709,3042.4,3042.3,0.001]
[1764236164872,0.9706,3042.4,3042.3,0.001]
[1764236165357,0.4701,3042.4,3042.3,0.001]
[1764236168075,4.25667877,3042.4,3042.3,0.001]
[1764236168367,4.56441535,3042.4,3042.3,0.001]
[1764236170311,4.56441535,3042.4,3042.3,0.211]
[1764236170777,4.56441535,3042.4,3042.3,0.001]
[1764236173364,5.28982556,3042.4,3042.3,0.001]
[1764236177495,5.28982556,3042.4,3041.9,0.001]
[1764236177496,5.38908873,3042.4,3041.9,0.001]
[1764236177658,0.56736317,3042.0,3041.9,0.001]
[1764236177996,0.87491585,3042.0,3041.9,0.001]
[1764236178168,5.33912093,3042.0,3041.9,0.001]
[1764236179893,5.23985776,3042.0,3041.9,0.001]
[1764236183366,3.59486365,3042.0,3041.9,0.001]
[1764236183564,3.28731097,3042.0,3041.9,0.001]
[1764236184105,3.75541097,3042.0,3041.9,0.001]
[1764236185280,3.28731097,3042.0,3041.9,0.001]
[1764236186676,6.57418972,3042.2,3041.9,0.001]
[1764236186897,0.30694287,3042.1,3041.9,0.001]
[1764236188893,3.28651097,3042.0,3041.9,0.001]
[1764236189204,3.59357911,3042.0,3041.9,0.001]
[1764236191585,4.06167911,3042.0,3041.9,0.001]
[1764236192479,4.51297911,3042.0,3041.9,0.001]
[1764236192680,3.59357911,3042.0,3041.9,0.001]
[1764236192877,4.06167911,3042.0,3041.9,0.001]
[1764236193076,4.06189187,3042.0,3041.9,0.001]
[1764236194105,0.002,3042.3,3041.9,0.0025]
[1764236194305,3.28899025,3042.3,3041.9,0.001]
[1764236194508,7.02727365,3042.3,3042.0,0.209]
[1764236194706,0.30730248,3042.2,3042.0,0.209]
[1764236194878,6.57597365,3042.3,3042.0,0.209]
[1764236195807,6.57597365,3042.3,3042.2,0.0015]
[1764236195808,3.28898681,3042.3,3042.2,0.0015]
[1764236196211,0.002,3042.3,3042.2,0.0015]
[1764236196408,0.002,3042.3,3042.2,0.003]
[1764236196710,0.002,3042.3,3042.2,0.0015]
[1764236199582,0.002,3042.3,3042.1,0.405504]
[1764236200290,0.4754,3042.2,3042.0,0.209]
[1764236200522,3.28709486,3042.2,3042.0,0.209]
[1764236200687,3.28709486,3042.2,3042.1,0.0015]
[1764236201717,3.28906923,3042.3,3042.1,0.2105]
[1764236201917,3.28906923,3042.3,3042.1,0.209]
[1764236202237,0.4754,3042.2,3041.9,0.001]
[1764236202399,0.4754,3042.2,3042.1,0.209]
[1764236202583,3.28720291,3042.1,3041.9,0.001]
[1764236202792,3.28720291,3042.1,3042.0,0.614504]
[1764236203291,3.28720291,3042.1,3042.0,0.405504]
[1764236203513,3.76260291,3042.1,3041.9,0.001]
[1764236203797,0.9482,3042.0,3041.9,0.21]
[1764236204788,4.23551097,3042.0,3041.9,0.21]
[1764236206517,3.76271097,3042.0,3041.9,0.21]
[1764236207388,3.76271097,3042.0,3041.9,0.001]
[1764236207591,3.76271097,3042.0,3041.9,0.21]
[1764236208007,4.23551097,3042.0,3041.9,0.21]
[1764236208316,4.54289331,3042.0,3041.9,0.21]
[1764236209316,4.07009331,3042.0,3041.9,0.21]
[1764236209484,3.28720291,3042.1,3041.9,0.21]
[1764236209817,6.57441442,3042.1,3041.9,0.21]
[1764236210418,0.002,3042.3,3041.9,0.21]
[1764236210419,0.002,3042.3,3042.0,0.407004]
[1764236210620,0.002,3042.3,3042.2,0.0015]
[1764236210992,0.002,3042.3,3042.2,0.003]
[1764236211187,0.002,3042.3,3042.2,3.69559886]
[1764236211388,0.002,3042.3,3042.2,5.29945778]
[1764236211622,0.002,3042.3,3042.2,4.42119297]
[1764236211825,0.002,3042.3,3042.2,1.13409811]
[1764236211995,0.002,3042.3,3042.2,4.42119297]
[1764236212318,0.002,3042.3,3042.2,1.13409811]
[1764236212706,0.002,3042.3,3042.2,4.42119297]
[1764236212707,0.0012,3042.3,3042.2,4.42119297]
[1764236213012,0.0012,3042.3,3042.2,1.13409811]
[1764236213211,0.0012,3042.3,3042.2,1.34159811]
[1764236213413,0.0012,3042.3,3042.2,1.49311792]
[1764236213603,0.0012,3042.3,3042.2,0.407004]
[1764236213803,0.0012,3042.3,3042.2,0.616004]
[1764236214328,0.4766,3042.3,3042.2,0.405504]
[1764236214618,0.0012,3042.3,3042.2,0.614504]
[1764236215129,0.0012,3042.3,3042.1,0.405504]
[1764236215292,0.0012,3042.3,3042.2,0.209]
[1764236215896,0.4766,3042.3,3042.2,0.209]
[1764236216521,0.0012,3042.3,3042.2,0.209]
[1764236219128,0.4766,3042.3,3042.2,0.209]
[1764236219332,0.4766,3042.3,3042.0,0.405504]
[1764236219506,3.28709486,3042.2,3042.1,0.209]
[1764236219710,3.76103746,3042.3,3042.1,0.209]
[1764236219921,0.4754,3042.2,3042.1,0.209]
[1764236220115,0.9482,3042.2,3042.1,0.209]
[1764236220435,0.9482,3042.2,3041.9,0.406504]
[1764236220640,0.4754,3042.0,3041.9,0.001]
[1764236220808,0.4754,3042.0,3041.9,0.21]
[1764236221002,0.9482,3042.0,3041.9,0.21]
[1764236221237,6.57527492,3042.3,3041.9,0.21]
[1764236221536,3.76271097,3042.0,3041.9,0.001]
[1764236222105,4.23551097,3042.0,3041.9,0.001]
[1764236222809,0.4754,3042.0,3041.9,0.001]
[1764236223012,4.07031435,3042.0,3041.9,0.001]
[1764236223336,4.07034267,3042.0,3041.9,0.001]
[1764236224605,0.7830317,3042.0,3041.9,0.001]
[1764236224938,0.7830317,3042.0,3041.9,0.0025]
[1764236224939,3.59494267,3042.0,3041.9,0.0025]
[1764236225120,0.3076317,3042.0,3041.9,0.0025]
[1764236225441,3.2872585,3042.1,3041.9,0.0025]
[1764236225639,0.0012,3042.3,3041.9,0.0025]
[1764236225640,6.57517362,3042.3,3041.9,0.0025]
[1764236225813,0.30758149,3042.2,3041.9,0.0025]
[1764236226136,0.30758149,3042.1,3041.9,0.0025]
[1764236226345,0.0012,3042.3,3041.9,0.0025]
[1764236226645,0.0012,3042.3,3042.0,0.0015]
[1764236226848,0.0012,3042.3,3042.1,0.209]
[1764236228935,0.4754,3042.2,3042.1,0.209]
[1764236229255,0.78297866,3042.2,3042.1,0.209]
[1764236229411,0.4754,3042.2,3042.1,0.209]
[1764236229750,3.7610827,3042.3,3042.1,0.209]
[1764236229921,0.474,3042.3,3042.1,0.209]
[1764236230122,3.76100175,3042.3,3042.1,0.209]
[1764236231212,0.30758019,3042.2,3042.1,0.209]
[1764236231412,0.30756662,3042.2,3042.1,0.209]
[1764236231940,3.76099236,3042.3,3042.1,0.209]
[1764236232461,3.28822552,3042.3,3042.1,0.209]
[1764236233346,3.28822552,3042.3,3042.2,0.408504]
[1764236233347,0.0012,3042.3,3042.2,0.408504]
[1764236234032,0.0012,3042.3,3042.2,0.407004]
[1764236235544,0.0012,3042.3,3042.2,0.2105]
[1764236236450,0.0004,3042.3,3042.2,3.90459886]
[1764236236744,0.0004,3042.3,3042.2,0.617504]
[1764236236939,0.0004,3042.3,3042.2,0.616004]
[1764236238848,0.0004,3042.3,3042.2,3.90309886]
[1764236239045,0.0004,3042.3,3042.2,3.90459886]
[1764236239246,0.0004,3042.3,3042.2,4.63019297]
[1764236246764,0.0004,3042.3,3042.2,6.36962529]
[1764236247327,0.0004,3042.3,3042.2,4.63019297]
[1764236247659,0.0004,3042.3,3042.2,6.38315836]
[1764236248026,0.0004,3042.3,3042.2,4.63019297]
[1764236248246,0.0004,3042.3,3042.2,6.38274602]
[1764236248446,0.0004,3042.3,3042.2,6.38124602]
[1764236248865,0.0004,3042.3,3042.2,6.38274602]
[1764236250271,0.0004,3042.3,3042.2,6.38124602]
[1764236250458,0.0004,3042.3,3042.2,4.62869297]
[1764236250760,0.0004,3042.3,3042.2,5.79665632]
[1764236251277,0.0004,3042.3,3042.2,4.63019297]
[1764236251570,0.0004,3042.3,3042.2,6.38274602]
[1764236252232,0.0004,3042.3,3042.2,4.63019297]
[1764236256543,0.0004,3042.3,3042.2,7.54795554]
[1764236257102,0.002,3042.7,3042.3,1.13109811]
[1764236257103,0.001,3042.7,3042.3,1.13109811]
[1764236257258,0.4555,3044.6,3043.0,0.405504]
[1764236257459,0.1852,3045.0,3044.1,0.405504]
[1764236257460,0.4555,3044.5,3044.1,0.405504]
[1764236257708,0.4555,3044.5,3044.3,0.405504]
[1764236258159,0.4888,3044.4,3044.3,0.405504]
[1764236258506,0.9443,3044.4,3044.3,0.405504]
[1764236258691,0.9443,3044.4,3044.3,3.69033138]
[1764236259588,0.9443,3044.4,3044.3,0.405504]
[1764236259786,0.9443,3044.4,3044.3,3.69033138]
[1764236260086,0.9443,3044.4,3044.3,0.405504]
[1764236260291,0.9435,3044.4,3044.3,3.69033138]
[1764236260794,0.488,3044.4,3044.3,3.69033138]
[1764236261865,0.9532,3044.4,3044.3,3.69033138]
[1764236262207,4.00894212,3045.7,3044.3,3.69033138]
[1764236262208,0.47768287,3046.5,3044.6,2.240903]
[1764236262364,0.01248287,3046.5,3045.2,0.87061335]
[1764236262564,0.01248287,3046.5,3046.1,3.69069031]
[1764236262765,0.01248287,3046.5,3046.1,5.28610417]
[1764236262983,0.01248287,3046.5,3046.1,5.49840417]
[1764236263192,0.01248287,3046.5,3046.1,4.62628442]
[1764236263501,0.01248287,3046.5,3046.1,0.615504]
[1764236264163,0.60792937,3046.2,3046.1,0.405504]
[1764236264363,0.60792937,3046.2,3046.1,0.615504]
[1764236264574,1.07312937,3046.2,3046.1,0.615504]
[1764236264889,0.60792937,3046.2,3046.1,0.615504]
[1764236265191,1.07312937,3046.2,3046.1,0.615504]
[1764236265491,0.60792937,3046.2,3046.1,0.615504]
[1764236265693,1.07312937,3046.2,3046.1,0.405504]
[1764236265901,1.07312937,3046.2,3046.1,0.21]
[1764236266699,1.07312937,3046.2,3045.9,0.405504]
[1764236266863,0.4701,3046.0,3045.8,0.17157907]
[1764236267064,0.4652,3046.1,3045.8,0.17157907]
[1764236267065,0.6614,3045.9,3045.8,0.17157907]
[1764236267263,0.6614,3045.9,3045.8,0.38157907]
[1764236267479,1.1266,3045.9,3045.8,0.38157907]
[1764236268168,1.1266,3045.9,3045.8,0.21]
[1764236269493,0.6565,3045.9,3045.1,0.72559411]
[1764236269803,1.1266,3045.9,3045.4,0.405504]
[1764236270892,1.1266,3045.9,3045.5,3.28353308]
[1764236271097,1.1266,3045.9,3045.7,0.405504]
[1764236273178,1.1266,3045.9,3045.7,3.68881573]
[1764236273378,1.1286,3045.9,3045.7,3.68881573]
[1764236273597,0.4721,3045.9,3045.7,3.68881573]
[1764236274994,0.4701,3045.8,3045.7,3.68881573]
[1764236275194,0.4701,3045.8,3045.7,0.405504]